bitfinex/quotes_SOLUSD_20250306
["timestamp","ask_amount","ask_price","bid_price","bid_amount"]
[1741220391363,0.033,146.88,146.83,29.17627899]
[1741220391568,0.033,146.88,146.84,29.17627899]
[1741220391874,0.033,146.88,146.81,29.17627899]
[1741220392178,18.64964886,146.86,146.8,6.8118]
[1741220392379,19.72274499,146.86,146.8,6.8118]
[1741220393089,19.72274499,146.86,146.79,14.3791]
[1741220393880,18.64964886,146.84,146.79,12.8237]
[1741220394069,19.72274499,146.84,146.78,6.56]
[1741220394393,19.72274499,146.84,146.78,318.56]
[1741220395791,18.64964886,146.84,146.78,325.3728]
[1741220395987,18.64964886,146.84,146.78,318.56]
[1741220396376,19.72274499,146.84,146.78,318.56]
[1741220396976,80.8,146.83,146.78,312.0]
[1741220397283,102.04984499,146.82,146.77,0.03]
[1741220398684,80.8,146.81,146.77,0.03]
[1741220398891,100.52274499,146.8,146.77,0.03]
[1741220399090,80.8,146.79,146.77,0.03]
[1741220399290,1.07309613,146.78,146.77,0.03]
[1741220401201,1.5271,146.82,146.77,0.03]
[1741220401202,80.8,146.81,146.77,0.03]
[1741220401578,1.07309613,146.8,146.77,0.03]
[1741220401975,80.8,146.81,146.77,0.03]
[1741220402996,1.07309613,146.8,146.77,0.03]
[1741220403686,80.8,146.79,146.77,0.03]
[1741220403889,19.72274499,146.78,146.77,0.03]
[1741220404602,1.07309613,146.83,146.77,0.03]
[1741220404812,80.8,146.82,146.77,0.03]
[1741220405116,1.07309613,146.81,146.77,0.03]
[1741220406011,80.8,146.82,146.77,0.03]
[1741220406299,80.8,146.84,146.77,0.03]
[1741220406604,1.07309613,146.83,146.77,0.03]
[1741220407395,80.8,146.84,146.77,0.03]
[1741220407583,81.87309613,146.87,146.77,81.33]
[1741220407778,18.64964886,146.85,146.77,81.33]
[1741220408004,1.07309613,146.84,146.77,81.33]
[1741220408196,80.8,146.83,146.77,0.03]
[1741220408393,1.07309613,146.82,146.77,0.03]
[1741220408603,80.8,146.83,146.77,0.03]
[1741220409194,80.8,146.83,146.77,312.03]
[1741220409606,80.8,146.83,146.77,29.29588392]
[1741220409988,80.8,146.83,146.78,29.26588392]
[1741220410191,80.8,146.83,146.79,6.54]
[1741220410703,80.8,146.83,146.8,6.8119]
[1741220410907,80.8,146.87,146.79,6.54]
[1741220411109,18.64964886,146.85,146.77,81.33]
[1741220411306,1.07309613,146.84,146.77,81.33]
[1741220411508,80.8,146.83,146.77,0.03]
[1741220412213,80.8,146.83,146.77,6.8433]
[1741220412609,80.8,146.83,146.77,318.8433]
[1741220412991,80.8,146.83,146.77,312.03]
[1741220413187,80.833,146.88,146.78,0.14216157]
[1741220413413,80.833,146.88,146.8,29.26588392]
[1741220413610,1.07309613,146.87,146.78,145.6]
[1741220413814,18.64964886,146.86,146.77,0.03]
[1741220413997,1.07309613,146.85,146.77,0.03]
[1741220414203,80.8,146.84,146.77,6.8432]
[1741220416300,80.8,146.84,146.77,318.8432]
[1741220416502,1.07309613,146.83,146.77,312.03]
[1741220417019,80.8,146.84,146.77,318.8433]
[1741220417608,80.8,146.84,146.77,6.8433]
[1741220417813,80.8,146.84,146.77,13.3833]
[1741220417994,80.8,146.87,146.79,29.26588392]
[1741220418705,0.033,146.88,146.8,29.26588392]
[1741220419011,0.033,146.88,146.84,29.26588392]
[1741220419216,0.033,146.88,146.85,6.56]
[1741220419800,0.033,146.88,146.85,87.86]
[1741220420001,0.033,146.88,146.86,6.8092]
[1741220420814,0.033,146.88,146.86,400.1092]
[1741220421019,0.033,146.88,146.86,431.01288392]
[1741220421216,0.033,146.88,146.86,394.9378]
[1741220421800,0.033,146.88,146.86,393.3]
[1741220421996,0.033,146.88,146.86,81.3]
[1741220422199,0.033,146.88,146.85,6.56]
[1741220422918,0.033,146.88,146.82,87.678]
[1741220422919,18.68264886,146.88,146.78,35.82338392]
[1741220423213,81.87309613,146.87,146.79,6.56]
[1741220423816,1.07309613,146.87,146.79,87.86]
[1741220423998,1.10609613,146.88,146.79,81.3]
[1741220424197,99.44964886,146.87,146.79,6.56]
[1741220424408,18.64964886,146.85,146.79,6.56]
[1741220424615,81.87309613,146.84,146.79,6.56]
[1741220425103,105.61334886,146.83,146.77,0.03]
[1741220425302,1.07309613,146.82,146.77,0.03]
[1741220425520,18.64964886,146.8,146.77,0.03]
[1741220425831,19.72274499,146.8,146.77,0.03]
[1741220428127,100.52274499,146.8,146.77,0.03]
[1741220431026,80.8,146.82,146.77,0.03]
[1741220431713,18.64964886,146.8,146.77,0.03]
[1741220433129,1.07309613,146.79,146.77,0.03]
[1741220433334,18.64964886,146.8,146.77,0.03]
[1741220434352,18.64964886,146.78,146.76,0.03]
[1741220434512,19.72274499,146.77,146.76,0.03]
[1741220435255,18.64964886,146.76,146.75,0.03]
[1741220435616,18.64964886,146.76,146.71,0.03]
[1741220435822,18.64964886,146.74,146.69,0.03]
[1741220436022,18.64964886,146.72,146.69,0.03]
[1741220436343,18.64964886,146.7,146.69,0.03]
[1741220436543,18.64964886,146.7,146.68,0.03]
[1741220436743,19.72274499,146.69,146.68,0.03]
[1741220436924,18.64964886,146.68,146.67,0.03]
[1741220437128,18.64964886,146.68,146.66,0.03]
[1741220437434,19.72274499,146.67,146.66,0.03]
[1741220437640,18.64964886,146.66,146.62,0.03]
[1741220437848,1.07309613,146.65,146.62,0.03]
[1741220439437,18.64964886,146.69,146.62,0.03]
[1741220439623,18.64964886,146.67,146.62,0.03]
[1741220439824,1.07309613,146.66,146.62,0.03]
[1741220440013,18.64964886,146.64,146.62,0.03]
[1741220440208,19.72274499,146.64,146.62,0.03]
[1741220441133,1.07309613,146.64,146.62,0.03]
[1741220441317,80.8,146.65,146.62,0.03]
[1741220441517,80.8,146.7,146.62,0.03]
[1741220441730,2.66769613,146.71,146.62,0.03]
[1741220441731,81.87309613,146.69,146.62,0.03]
[1741220442054,18.64964886,146.67,146.62,0.03]
[1741220442236,18.64964886,146.65,146.62,0.03]
[1741220442425,1.07309613,146.64,146.62,0.03]
[1741220442619,99.44964886,146.63,146.62,0.03]
[1741220444434,80.8,146.63,146.62,0.03]
[1741220445536,19.72274499,146.63,146.62,0.03]
[1741220445738,21.36444499,146.63,146.62,0.03]
[1741220445933,18.64964886,146.62,146.55,0.03]
[1741220446325,18.64964886,146.6,146.55,0.03]
[1741220446526,18.64964886,146.58,146.55,0.03]
[1741220446715,1.07309613,146.57,146.55,0.03]
[1741220446921,18.64964886,146.62,146.55,0.03]
[1741220447221,18.64964886,146.6,146.55,0.03]
[1741220447416,1.07309613,146.59,146.55,0.03]
[1741220449122,18.64964886,146.58,146.55,0.03]
[1741220449422,1.07309613,146.57,146.55,0.03]
[1741220451723,1.07309613,146.61,146.55,0.03]
[1741220451924,80.8,146.6,146.55,0.03]
[1741220452126,80.8,146.6,146.55,312.03]
[1741220452450,81.87309613,146.6,146.56,6.8231]
[1741220452829,81.87309613,146.6,146.56,6.4562]
[1741220453238,81.87309613,146.6,146.55,0.03]
[1741220454040,18.64964886,146.59,146.55,0.03]
[1741220454239,18.64964886,146.57,146.55,0.03]
[1741220454437,19.72274499,146.56,146.55,0.03]
[1741220455652,1.07309613,146.58,146.55,0.03]
[1741220456149,18.64964886,146.57,146.55,0.03]
[1741220456648,1.07309613,146.56,146.55,0.03]
[1741220457034,1.07309613,146.57,146.55,0.03]
[1741220459247,1.07309613,146.57,146.54,0.03]
[1741220459557,1.6634,146.56,146.49,0.03]
[1741220459851,18.64964886,146.54,146.49,0.03]
[1741220460050,18.64964886,146.52,146.49,0.03]
[1741220460352,18.64964886,146.5,146.49,0.03]
[1741220460550,18.64964886,146.55,146.49,0.03]
[1741220460751,18.64964886,146.53,146.49,0.03]
[1741220460951,1.07309613,146.52,146.49,0.03]
[1741220462539,18.64964886,146.51,146.49,0.03]
[1741220462740,2.0,146.55,146.49,0.03]
[1741220462741,19.72274499,146.5,146.49,0.03]
[1741220463047,18.64964886,146.49,146.47,0.03]
[1741220463352,18.64964886,146.47,146.43,0.03]
[1741220463647,18.64964886,146.45,146.43,0.03]
[1741220463844,1.07309613,146.44,146.43,0.03]
[1741220464335,19.72274499,146.44,146.43,0.03]
[1741220470836,18.64964886,146.43,146.38,8.5541018]
[1741220471042,18.64964886,146.41,146.38,8.5541018]
[1741220471466,18.64964886,146.46,146.38,1.7228018]
[1741220471665,18.64964886,146.44,146.38,1.7228018]
[1741220471864,1.07309613,146.43,146.38,8.5543018]
[1741220472068,1.07309613,146.43,146.38,1.7228018]
[1741220472463,18.64964886,146.42,146.38,1.7228018]
[1741220472658,18.64964886,146.4,146.38,1.7228018]
[1741220472864,19.72274499,146.39,146.38,1.7228018]
[1741220473971,1.07309613,146.43,146.38,8.5543018]
[1741220474273,1.07309613,146.43,146.38,1.7228018]
[1741220474465,3.07309613,146.47,146.38,1.7228018]
[1741220474778,18.64964886,146.46,146.38,8.5542018]
[1741220474941,18.64964886,146.44,146.38,8.5542018]
[1741220475149,1.07309613,146.43,146.38,8.5542018]
[1741220475465,1.07309613,146.47,146.38,320.5542018]
[1741220475648,18.64964886,146.46,146.38,320.5542018]
[1741220475849,1.07309613,146.45,146.38,320.5542018]
[1741220476066,18.64964886,146.44,146.38,313.7228018]
[1741220476266,18.64964886,146.42,146.38,1.7228018]
[1741220476466,1.07309613,146.41,146.38,1.7228018]
[1741220476678,18.64964886,146.4,146.38,1.7228018]
[1741220476852,19.72274499,146.39,146.38,1.7228018]
[1741220478272,1.07309613,146.46,146.38,1.7228018]
[1741220478472,18.64964886,146.45,146.38,1.7228018]
[1741220478667,18.64964886,146.43,146.38,1.7228018]
[1741220478873,1.07309613,146.42,146.38,1.7228018]
[1741220479074,18.64964886,146.41,146.38,1.7228018]
[1741220479277,1.07309613,146.4,146.38,1.7228018]
[1741220479473,18.64964886,146.39,146.38,1.7228018]
[1741220480174,18.64964886,146.41,146.38,1.7228018]
[1741220480375,18.64964886,146.39,146.38,1.7228018]
[1741220480680,18.64964886,146.39,146.38,1.8e-06]
[1741220480858,18.64964886,146.39,146.34,0.03]
[1741220481057,18.64964886,146.37,146.34,0.03]
[1741220481257,1.07309613,146.38,146.34,0.03]
[1741220481258,18.64964886,146.35,146.34,0.03]
[1741220482083,1.07309613,146.39,146.34,0.03]
[1741220482269,18.64964886,146.38,146.34,0.03]
[1741220482468,1.07309613,146.37,146.34,0.03]
[1741220482670,18.64964886,146.36,146.34,0.03]
[1741220482868,19.72274499,146.35,146.34,0.03]
[1741220483965,18.64964886,146.34,146.27,6.6423]
[1741220484159,18.64964886,146.32,146.27,6.6423]
[1741220484359,8.20870597,146.4,146.27,6.6423]
[1741220484360,18.64964886,146.3,146.27,6.6423]
[1741220484582,18.64964886,146.28,146.27,6.6423]
[1741220484971,18.64964886,146.34,146.25,1.6618]
[1741220485174,18.64964886,146.32,146.25,1.6618]
[1741220485479,18.64964886,146.32,146.21,1.5312]
[1741220485480,18.64964886,146.3,146.21,1.5312]
[1741220485687,18.64964886,146.3,146.16,1.6362]
[1741220485688,1.07309613,146.29,146.16,1.6362]
[1741220485882,18.64964886,146.28,146.16,8.478]
[1741220486066,18.64964886,146.26,146.16,320.478]
[1741220486263,18.64964886,146.24,146.16,320.478]
[1741220486463,1.07309613,146.23,146.16,320.478]
[1741220487273,18.64964886,146.22,146.16,313.6362]
[1741220487474,1.07309613,146.21,146.16,1.6362]
[1741220487675,1.07309613,146.21,146.13,6.8428]
[1741220487676,18.64964886,146.2,146.13,6.8428]
[1741220487983,18.64964886,146.18,146.13,6.8428]
[1741220488186,1.07309613,146.17,146.13,6.8428]
[1741220488387,1.07309613,146.17,146.12,1.502]
[1741220488388,3.07309613,146.23,146.12,1.502]
[1741220488568,18.64964886,146.22,146.12,8.3456]
[1741220488770,18.64964886,146.2,146.12,8.3456]
[1741220488983,1.07309613,146.19,146.12,8.3456]
[1741220489185,1.07309613,146.19,146.12,37.61148392]
[1741220489381,1.07309613,146.25,146.12,8.3456]
[1741220489571,18.64964886,146.24,146.12,8.3456]
[1741220489773,18.64964886,146.22,146.12,8.3456]
[1741220489974,1.07309613,146.21,146.13,29.26588392]
[1741220490373,1.07309613,146.21,146.14,6.8427]
[1741220491771,1.07309613,146.21,146.14,53.21538392]
[1741220491984,1.07309613,146.25,146.14,53.21538392]
[1741220492183,18.64964886,146.24,146.14,53.21538392]
[1741220492386,18.64964886,146.22,146.14,6.8427]
[1741220492572,1.07309613,146.21,146.14,6.8427]
[1741220492978,18.64964886,146.2,146.14,6.8427]
[1741220493171,18.64964886,146.18,146.12,8.3455]
[1741220493373,1.07309613,146.17,146.12,8.3455]
[1741220493877,2.0,146.23,146.12,8.3455]
[1741220493878,18.64964886,146.22,146.12,8.3455]
[1741220494072,18.64964886,146.2,146.12,8.3455]
[1741220494276,1.07309613,146.19,146.12,8.3455]
[1741220494492,1.07309613,146.19,146.12,54.72058392]
[1741220494674,1.07309613,146.25,146.14,29.26588392]
[1741220494883,1.07309613,146.25,146.15,29.26588392]
[1741220495075,18.64964886,146.24,146.15,312.0]
[1741220495269,1.5414,146.28,146.15,312.0]
[1741220495270,18.64964886,146.22,146.15,312.0]
[1741220495472,18.64964886,146.2,146.15,312.0]
[1741220495672,18.64964886,146.2,146.15,318.842]
[1741220495972,1.07309613,146.25,146.15,318.842]
[1741220496492,18.64964886,146.24,146.15,318.842]
[1741220496692,2.0,146.27,146.15,318.842]
[1741220496693,18.64964886,146.22,146.15,318.842]
[1741220496867,18.64964886,146.2,146.15,318.842]
[1741220497072,18.64964886,146.25,146.15,318.842]
[1741220497406,18.64964886,146.23,146.14,6.8424]
[1741220497571,18.64964886,146.21,146.13,6.8432]
[1741220497774,1.07309613,146.2,146.13,6.8432]
[1741220498685,1.10609613,146.23,146.14,29.26588392]
[1741220498887,1.10609613,146.23,146.15,29.26588392]
[1741220499089,1.10609613,146.23,146.14,29.26588392]
[1741220499398,1.10609613,146.23,146.13,53.21708392]
[1741220499778,1.10609613,146.23,146.12,37.29788392]
[1741220499986,18.64964886,146.22,146.12,14.8755]
[1741220500290,18.64964886,146.22,146.12,320.3755]
[1741220500291,1.07309613,146.21,146.12,320.3755]
[1741220500474,18.64964886,146.2,146.12,320.3755]
[1741220500676,1.07309613,146.19,146.12,320.3755]
[1741220500876,18.64964886,146.18,146.12,0.03]
[1741220501075,18.64964886,146.16,146.12,0.03]
[1741220501272,18.64964886,146.14,146.12,6.8736]
[1741220501577,2.57539613,146.2,146.12,6.8736]
[1741220501783,18.64964886,146.19,146.12,0.03]
[1741220502107,1.07309613,146.18,146.12,0.03]
[1741220505593,18.64964886,146.17,146.12,0.03]
[1741220505797,1.07309613,146.16,146.12,0.03]
[1741220508779,1.07309613,146.2,146.12,0.03]
[1741220509185,18.64964886,146.19,146.12,0.03]
[1741220509385,18.64964886,146.17,146.12,0.03]
[1741220509684,1.07309613,146.16,146.12,0.03]
[1741220510304,18.64964886,146.2,146.12,0.03]
[1741220510480,1.07309613,146.19,146.12,0.03]
[1741220511491,1.07309613,146.21,146.12,0.03]
[1741220511689,2.0,146.18,146.12,0.03]
[1741220511880,18.64964886,146.15,146.09,1.7228018]
[1741220512078,18.64964886,146.13,146.09,1.7228018]
[1741220512299,1.07309613,146.12,146.09,1.7228018]
[1741220512700,18.64964886,146.11,146.09,1.7228018]
[1741220512895,1.07309613,146.1,146.09,1.7228018]
[1741220513779,19.72274499,146.1,146.09,1.7228018]
[1741220514704,1.07309613,146.1,146.09,1.7228018]
[1741220514903,1.07309613,146.14,146.09,1.7228018]
[1741220515287,1.07309613,146.17,146.09,1.7228018]
[1741220515596,18.64964886,146.16,146.09,1.7228018]
[1741220515797,18.64964886,146.14,146.09,1.7228018]
[1741220515997,1.07309613,146.13,146.09,8.5678018]
[1741220516196,1.07309613,146.19,146.11,6.229]
[1741220516783,18.64964886,146.18,146.09,1.7228018]
[1741220516987,3.07309613,146.19,146.09,1.7228018]
[1741220516988,18.64964886,146.16,146.09,8.5678018]
[1741220517188,2.58309613,146.2,146.1,6.1838]
[1741220517388,2.58309613,146.2,146.1,7.7517]
[1741220517687,18.64964886,146.19,146.1,7.7517]
[1741220517896,1.07309613,146.18,146.1,7.7517]
[1741220518688,1.07309613,146.18,146.1,326.5962]
[1741220520292,1.07309613,146.18,146.11,29.26588392]
[1741220520504,3.10609613,146.23,146.1,60.97358392]
[1741220520793,18.64964886,146.22,146.1,60.97358392]
[1741220520987,18.64964886,146.2,146.1,14.5962]
[1741220521187,1.07309613,146.19,146.1,31.7077]
[1741220521412,1.10609613,146.23,146.15,6.1313]
[1741220521613,1.10609613,146.23,146.16,1.5187]
[1741220521986,18.64964886,146.22,146.16,1.5187]
[1741220522195,1.07309613,146.21,146.17,6.8413]
[1741220522389,1.07309613,146.21,146.16,8.3603]
[1741220523095,1.07309613,146.21,146.16,8.3604]
[1741220523296,0.033,146.23,146.17,29.26588392]
[1741220523502,0.033,146.23,146.2,29.26588392]
[1741220523716,0.033,146.23,146.21,35.52878392]
[1741220524112,0.033,146.23,146.21,41.96878392]
[1741220524300,0.033,146.23,146.22,6.839]
[1741220524505,0.033,146.23,146.22,8.4835]
[1741220524709,0.033,146.23,146.22,37.74938392]
[1741220525018,0.033,146.23,146.22,119.04938392]
[1741220526697,80.8,146.31,146.22,200.44688392]
[1741220526996,80.8,146.31,146.26,29.26588392]
[1741220527213,80.8,146.31,146.24,393.3]
[1741220527417,80.8,146.31,146.25,29.26588392]
[1741220527625,80.8,146.31,146.27,29.26588392]
[1741220527999,80.8,146.31,146.25,35.59858392]
[1741220528309,80.8,146.31,146.25,6.3327]
[1741220528513,80.8,146.31,146.25,35.59858392]
[1741220528698,80.8,146.31,146.25,42.43608392]
[1741220529318,80.8,146.31,146.28,29.26588392]
[1741220529519,80.8,146.31,146.27,29.26588392]
[1741220530023,80.8,146.35,146.27,29.26588392]
[1741220530202,80.8,146.34,146.27,29.26588392]
[1741220530523,80.8,146.34,146.28,36.10188392]
[1741220530700,80.8,146.34,146.29,6.42]
[1741220531015,1.07309613,146.36,146.25,87.6327]
[1741220531016,80.8,146.33,146.25,87.6327]
[1741220531320,81.87309613,146.33,146.26,6.42]
[1741220531522,80.8,146.33,146.26,35.68588392]
[1741220532618,80.8,146.33,146.26,6.42]
[1741220533415,1.07309613,146.32,146.25,87.6327]
[1741220533617,80.8,146.31,146.25,12.7527]
[1741220534720,1.07309613,146.3,146.23,312.0]
[1741220534906,80.8,146.29,146.23,312.0]
[1741220535105,80.8,146.28,146.23,312.0]
[1741220535308,81.87309613,146.27,146.21,6.1008]
[1741220535619,80.8,146.26,146.18,1.5229]
[1741220535817,81.87309613,146.25,146.18,1.5229]
[1741220536014,81.87309613,146.25,146.18,8.3637]
[1741220536201,80.8,146.25,146.19,29.26588392]
[1741220536924,80.8,146.25,146.19,36.10618392]
[1741220537125,99.44964886,146.24,146.18,1.5229]
[1741220537313,100.52274499,146.24,146.17,12.5208]
[1741220537819,80.8,146.23,146.17,12.5208]
[1741220538025,80.8,146.22,146.17,12.5208]
[1741220538526,80.8,146.22,146.17,324.5208]
[1741220540011,80.8,146.22,146.17,360.62778392]
[1741220541831,80.8,146.22,146.17,324.5208]
[1741220542023,80.8,146.21,146.14,37.26208392]
[1741220542330,1.07309613,146.21,146.14,7.9962]
[1741220543326,1.07309613,146.21,146.15,29.26588392]
[1741220543510,80.8,146.22,146.16,29.26588392]
[1741220543912,81.87309613,146.22,146.14,37.26208392]
[1741220544433,81.87309613,146.22,146.14,44.10478392]
[1741220544611,81.87309613,146.22,146.15,29.26588392]
[1741220545111,81.87309613,146.22,146.16,312.0]
[1741220545732,80.8,146.22,146.17,29.26588392]
[1741220545933,80.8,146.22,146.17,36.10708392]
[1741220546435,80.8,146.22,146.16,312.03]
[1741220546932,80.8,146.22,146.16,337.29807588]
[1741220547111,80.8,146.22,146.16,25.29807588]
[1741220547311,80.8,146.22,146.17,18.42637588]
[1741220547912,0.033,146.25,146.19,18.42637588]
[1741220548114,0.033,146.25,146.2,18.42637588]
[1741220548326,0.033,146.25,146.18,81.3]
[1741220548526,1.10609613,146.25,146.18,81.3]
[1741220548734,80.8,146.24,146.16,164.05637588]
[1741220548940,80.8,146.24,146.17,18.42637588]
[1741220550140,80.8,146.24,146.18,312.0]
[1741220550560,1.07309613,146.23,146.16,81.33]
[1741220551137,1.07309613,146.23,146.16,0.03]
[1741220551138,99.44964886,146.22,146.16,0.03]
[1741220551346,81.87309613,146.21,146.16,0.03]
[1741220551642,99.44964886,146.2,146.16,0.03]
[1741220551816,1.07309613,146.19,146.16,0.03]
[1741220552318,99.44964886,146.18,146.16,0.03]
[1741220552522,18.64964886,146.16,146.1,0.03]
[1741220552754,81.87309613,146.15,146.1,0.03]
[1741220553518,81.87309613,146.15,146.1,312.03]
[1741220555919,80.8,146.15,146.1,312.03]
[1741220556843,80.8,146.15,146.1,0.03]
[1741220557917,2.0,145.92,145.84,42.02544425]
[1741220558121,3.07309613,145.91,145.84,42.02544425]
[1741220558343,15.17340553,145.9,145.84,42.02544425]
[1741220558520,15.17340553,145.9,145.75,9.48927278]
[1741220558521,4.13318493,145.89,145.75,9.48927278]
[1741220558722,4.13318493,145.89,145.77,29.51522079]
[1741220558723,20.2335656,145.88,145.77,29.51522079]
[1741220559043,35.84361357,145.87,145.77,29.51522079]
[1741220559237,35.84361357,145.87,145.75,0.0234905]
[1741220559421,35.84361357,145.87,145.78,29.51522079]
[1741220559624,41.32168397,145.87,145.8,29.51522079]
[1741220559825,18.64964886,145.91,145.8,29.51522079]
[1741220560017,1.07309613,145.9,145.8,6.64]
[1741220560422,34.65052433,145.89,145.8,6.64]
[1741220560623,34.65052433,145.89,145.83,29.51522079]
[1741220560852,35.71410071,145.98,145.86,29.51522079]
[1741220561143,16.42613218,145.89,145.86,29.51522079]
[1741220561442,20.42257305,145.89,145.85,29.51522079]
[1741220561649,20.42257305,145.89,145.88,29.51522079]
[1741220561822,20.42257305,145.89,145.84,1.43901963]
[1741220562029,20.42257305,145.89,145.85,29.51522079]
[1741220562229,3.99644087,145.89,145.85,29.51522079]
[1741220562446,3.99644087,145.89,145.86,29.51522079]
[1741220562832,18.64964886,145.99,145.86,29.51522079]
[1741220563041,1.07309613,145.98,145.86,29.51522079]
[1741220563348,1.07309613,145.98,145.86,341.51522079]
[1741220563561,26.9757021,145.97,145.86,341.51522079]
[1741220563760,1.07309613,145.96,145.87,29.51522079]
[1741220564445,10.35039861,145.95,145.87,29.51522079]
[1741220564754,26.7411403,145.95,145.87,48.096461]
[1741220566415,20.37166423,145.94,145.87,48.096461]
[1741220566864,20.37166423,145.94,145.86,48.096461]
[1741220567036,1.07309613,145.93,145.85,64.3]
[1741220567360,1.07309613,145.93,145.84,87.96]
[1741220567543,17.46383782,145.93,145.84,81.3]
[1741220567736,17.46383782,145.93,145.82,70.5736]
[1741220567737,18.64964886,145.92,145.82,64.3]
[1741220567937,1.07309613,145.91,145.82,87.96]
[1741220568345,1.07309613,145.91,145.82,136.056461]
[1741220568951,1.07309613,145.92,145.83,48.096461]
[1741220569153,12.9542089,145.9,145.83,48.096461]
[1741220569742,16.93513144,145.9,145.83,360.096461]
[1741220570259,16.93513144,145.9,145.83,312.0]
[1741220570632,16.39123792,145.89,145.82,87.96]
[1741220570839,16.39123792,145.89,145.81,48.096461]
[1741220570840,1.07309613,145.88,145.81,6.64]
[1741220571167,1.07309613,145.88,145.8,129.396461]
[1741220571373,21.44525659,145.89,145.81,6.64]
[1741220571874,16.39123792,145.87,145.81,6.64]
[1741220573769,12.9542089,145.86,145.81,318.64]
[1741220573940,12.9542089,145.86,145.81,366.736461]
[1741220574145,12.9542089,145.86,145.81,318.64]
[1741220574373,16.90218875,145.86,145.81,318.64]
[1741220574766,16.39170018,145.85,145.81,318.64]
[1741220575267,16.39170018,145.85,145.81,366.696461]
[1741220575471,16.39170018,145.85,145.81,318.6]
[1741220575973,12.9542089,145.84,145.81,366.696461]
[1741220576376,12.9542089,145.84,145.82,48.096461]
[1741220576581,12.9542089,145.84,145.83,48.096461]
[1741220577068,8.32605324,145.91,145.83,48.096461]
[1741220577249,8.32605324,145.91,145.86,48.096461]
[1741220577449,8.32605324,145.91,145.88,48.096461]
[1741220577655,8.32605324,145.91,145.89,48.096461]
[1741220578051,8.32605324,145.91,145.89,54.696461]
[1741220578448,3.95175231,145.9,145.89,13.4544]
[1741220578654,3.95175231,145.9,145.89,61.550861]
[1741220578854,16.79644019,145.9,145.89,61.550861]
[1741220579565,12.84468788,145.9,145.89,373.550861]
[1741220580069,4.94026457,145.9,145.89,373.550861]
[1741220580858,4.94026457,145.9,145.89,519.150861]
[1741220581058,6.457e-05,145.9,145.89,519.150861]
[1741220582154,6.457e-05,145.9,145.89,538.22699457]
[1741220582546,6.457e-05,145.9,145.89,588.46561714]
[1741220583065,0.033,145.95,145.9,19.07613357]
[1741220583267,0.033,145.95,145.94,48.096461]
[1741220583972,0.033,145.95,145.94,54.948561]
[1741220584571,0.033,145.95,145.94,36.41384125]
[1741220584790,0.0001,145.95,145.94,182.01384125]
[1741220584988,0.0001,145.95,145.94,182.29816439]
[1741220585486,8.32605324,146.04,145.95,18.79181043]
[1741220585657,8.32605324,146.04,146.01,29.56174125]
[1741220585862,8.32605324,146.04,146.01,36.14174125]
[1741220586273,0.03942163,146.03,146.01,348.14174125]
[1741220586469,0.03942163,146.03,146.01,318.58]
[1741220586687,4.01174138,146.03,146.01,318.58]
[1741220587056,7.95126715,146.02,146.01,318.58]
[1741220587350,7.95126715,146.02,146.01,325.4288]
[1741220588268,7.95126715,146.02,145.99,6.8496]
[1741220588573,0.03942163,146.01,145.99,6.8496]
[1741220589958,0.03942163,146.01,146.0,29.56174125]
[1741220590277,0.03942163,146.01,146.0,29.06174125]
[1741220590778,0.03942163,146.01,146.0,35.91104125]
[1741220591179,0.03942163,146.01,146.0,6.8493]
[1741220591361,0.03942163,146.01,146.0,318.8493]
[1741220591562,0.03942163,146.01,146.0,312.0]
[1741220591768,8.00537265,146.01,145.99,88.1496]
[1741220591971,8.00537265,146.01,145.98,6.58]
[1741220592187,8.00537265,146.01,145.96,152.16]
[1741220592365,8.00537265,146.01,145.96,87.86]
[1741220592565,8.00537265,146.01,145.96,88.151]
[1741220592769,8.00537265,146.01,145.96,94.711]